fUST/lending_fUST_20250226
["ID","MTS","AMOUNT","RATE_DAILY","PERIOD"]
[354586307,1740582649205,-500.0,0.00052054,120]
[354586308,1740582649215,-500.0,0.00052054,120]
[354586310,1740582649225,-500.0,0.00052054,120]
[354586313,1740582649235,-500.0,0.00052054,120]
[354586314,1740582649245,-581.92,0.00052054,120]
[354586316,1740582649255,-997.0,0.00052054,120]
[354586318,1740582649266,-500.0,0.00052054,120]
[354586320,1740582649279,-500.0,0.00052054,120]
[354586322,1740582649288,-500.0,0.00052054,120]
[354586324,1740582649298,-500.0,0.00052054,120]
[354586326,1740582649307,-1034.38,0.00052054,120]
[354586328,1740582649317,-2389.6,0.00052054,120]
[354586330,1740582649326,-246.09345534,0.00052054,120]
[354586332,1740582649336,-500.0,0.00052054,120]
[354586334,1740582649345,-653.66,0.00052054,120]
[354586336,1740582649355,-500.0,0.00052054,120]
[354586337,1740582649365,-500.0,0.00052054,120]
[354586339,1740582649375,-500.0,0.00052054,120]
[354586341,1740582649385,-500.0,0.00052054,120]
[354586343,1740582649395,-500.0,0.00052054,120]
[354586344,1740582649404,-500.0,0.00052054,120]
[354586345,1740582649417,-500.0,0.00052054,120]
[354586347,1740582649426,-500.0,0.00052054,120]
[354586349,1740582649435,-500.0,0.00052054,120]
[354586351,1740582649445,-823.29,0.00052054,120]
[354586353,1740582649455,-500.0,0.00052054,120]
[354586355,1740582649467,-500.0,0.00052054,120]
[354586357,1740582649476,-500.0,0.00052054,120]
[354586359,1740582649487,-500.0,0.00052054,120]
[354586361,1740582649497,-506.78251453,0.00052054,120]
[354586363,1740582649506,-500.0,0.00052054,120]
[354586365,1740582649515,-260.65426981,0.00052054,120]
[354586367,1740582649526,-500.0,0.00052054,120]
[354586369,1740582649535,-500.0,0.00052054,120]
[354586371,1740582649544,-1114.61,0.00052054,120]
[354586372,1740582649554,-500.0,0.00052054,120]
[354586373,1740582649563,-500.0,0.00052054,120]
[354586374,1740582649572,-500.0,0.00052054,120]
[354586376,1740582649582,-500.0,0.00052054,120]
[354586378,1740582649591,-500.0,0.00052054,120]
[354586380,1740582649602,-500.0,0.00052054,120]
[354586383,1740582649611,-500.0,0.00052054,120]
[354586385,1740582649621,-1182.55,0.00052054,120]
[354586387,1740582649631,-500.0,0.00052054,120]
[354586389,1740582649640,-500.0,0.00052054,120]
[354586391,1740582649650,-500.0,0.00052054,120]
[354586393,1740582649659,-500.0,0.00052054,120]
[354586394,1740582649669,-500.0,0.00052054,120]
[354586397,1740582649679,-500.0,0.00052054,120]
[354586399,1740582649688,-500.0,0.00052054,120]
[354586401,1740582649698,-500.0,0.00052054,120]
[354586403,1740582649707,-500.0,0.00052054,120]
[354586405,1740582649717,-500.0,0.00052054,120]
[354586407,1740582649727,-586.94,0.00052054,120]
[354586409,1740582649736,-1070.2,0.00052054,120]
[354586411,1740582649746,-6432.63,0.00052054,120]
[354586413,1740582649755,-500.0,0.00052054,120]
[354586415,1740582649765,-500.0,0.00052054,120]
[354586417,1740582649776,-500.0,0.00052054,120]
[354586419,1740582649785,-500.0,0.00052054,120]
[354586421,1740582649794,-509.91966084,0.00052054,120]
[354586423,1740582649804,-951.52,0.00052054,120]
[354586425,1740582649813,-3936.75,0.00052054,120]
[354586427,1740582649823,-500.0,0.00052054,120]
[354586429,1740582649833,-500.0,0.00052054,120]
[354586431,1740582649842,-273.67609131,0.00052054,120]
[354586433,1740582649851,-500.0,0.00052054,120]
[354586435,1740582649861,-928.35,0.00052054,120]
[354586437,1740582649870,-500.0,0.00052054,120]
[354586439,1740582649879,-1078.97,0.00052054,120]
[354586441,1740582649888,-500.0,0.00052054,120]
[354586443,1740582649898,-500.0,0.00052054,120]
[354586445,1740582649907,-1547.81,0.00052054,120]
[354586447,1740582649916,-625.19,0.00052054,120]
[354586449,1740582649925,-572.72494536,0.00052054,120]
[354586451,1740582649934,-500.0,0.00052054,120]
[354586453,1740582649943,-500.0,0.00052054,120]
[354586455,1740582649952,-500.0,0.00052054,28]
[354586457,1740582649961,-3598.8,0.00052054,120]
[354586459,1740582649970,-500.0,0.00052054,120]
[354586460,1740582649979,-500.0,0.00052054,120]
[354586462,1740582649989,-500.0,0.00052054,120]
[354586464,1740582649998,-1281.09,0.00052054,120]
[354586466,1740582650007,-1253.62,0.00052054,120]
[354586468,1740582650017,-1253.62,0.00052054,120]
[354586469,1740582650028,-2555.54,0.00052054,120]
[354586470,1740582650038,-500.0,0.00052054,120]
[354586471,1740582650047,-500.0,0.00052054,120]
[354586472,1740582650057,-500.0,0.00052054,120]
[354586473,1740582650067,-609.43,0.00052054,120]
[354586474,1740582650076,-500.0,0.00052054,120]
[354586475,1740582650085,-500.0,0.00052054,120]
[354586476,1740582650094,-500.0,0.00052054,120]
[354586477,1740582650104,-18082.84,0.00052054,3]
[354586478,1740582650113,-500.0,0.00052054,120]
[354586479,1740582650123,-500.0,0.00052054,120]
[354586480,1740582650132,-500.0,0.00052054,120]
[354586481,1740582650142,-500.0,0.00052054,120]
[354586482,1740582650151,-500.0,0.00052054,120]
[354586483,1740582650161,-500.0,0.00052054,21]
[354586484,1740582650170,-707.68,0.00052054,120]
[354586485,1740582650180,-500.0,0.00052054,120]
[354586486,1740582650189,-8162.11,0.00052054,120]
[354586487,1740582650198,-500.0,0.00052054,120]
[354586488,1740582650207,-500.0,0.00052054,120]
[354586489,1740582650217,-8486.81,0.00052054,120]
[354586490,1740582650227,-517.45,0.00052054,120]
[354586491,1740582650236,-1333.1,0.00052054,120]
[354586492,1740582650246,-3032.01,0.00052054,120]
[354586493,1740582650256,-500.0,0.00052054,120]
[354586494,1740582650266,-500.0,0.00052054,120]
[354586495,1740582650277,-746.13,0.00052054,120]
[354586496,1740582650287,-2475.57,0.00052054,120]
[354586497,1740582650297,-500.0,0.00052054,120]
[354586498,1740582650306,-500.0,0.00052054,120]
[354586499,1740582650316,-500.0,0.00052054,120]
[354586500,1740582650326,-500.0,0.00052054,120]
[354586501,1740582650335,-500.0,0.00052054,120]
[354586502,1740582650345,-673.51,0.00052054,120]
[354586503,1740582650356,-500.0,0.00052054,120]
[354586504,1740582650365,-3779.2,0.00052054,120]
[354586505,1740582650375,-688.31,0.00052054,120]
[354586506,1740582650385,-500.0,0.00052054,120]
[354586507,1740582650395,-500.0,0.00052054,120]
[354586508,1740582650405,-1090.79,0.00052054,30]
[354586509,1740582650416,-500.0,0.00052054,120]
[354586510,1740582650426,-500.0,0.00052054,120]
[354586511,1740582650437,-500.0,0.00052054,120]
[354586512,1740582650446,-595.81,0.00052054,120]
[354586513,1740582650457,-500.0,0.00052054,120]
[354586514,1740582650467,-500.0,0.00052054,120]
[354586515,1740582650477,-500.0,0.00052054,120]
[354586516,1740582650487,-500.0,0.00052054,120]
[354586517,1740582650496,-3296.99,0.00052054,120]
[354586518,1740582650506,-500.0,0.00052054,120]
[354586519,1740582650515,-742.68,0.00052054,120]
[354586520,1740582650526,-500.8333303,0.00052054,120]
[354586521,1740582650535,-964.08,0.00052054,120]
[354586522,1740582650545,-503.11454854,0.00052054,120]
[354586523,1740582650554,-527.94,0.00052054,120]
[354586524,1740582650563,-9519.29,0.00052054,120]
[354586525,1740582650573,-500.0,0.00052054,120]
[354586526,1740582650582,-355.97895688,0.00052054,120]
[354586527,1740582650592,-1542.06,0.00052054,120]
[354586528,1740582650602,-500.0,0.00052054,120]
[354586529,1740582650611,-500.0,0.00052054,120]
[354586530,1740582650621,-500.0,0.00052054,120]
[354586531,1740582650631,-1264.63,0.00052054,120]
[354586532,1740582650640,-1025.15,0.00052054,120]
[354586533,1740582650651,-173.90890343,0.00052054,120]
[354586534,1740582650662,-3606.88,0.00052054,120]
[354586535,1740582650673,-1000.0,0.00052054,20]
[354586536,1740582650684,-8428.96,0.00052054,120]
[354586537,1740582650695,-500.0,0.00052054,120]
[354586538,1740582650705,-760.31,0.00052054,120]
[354586539,1740582650716,-500.0,0.00052054,120]
[354586540,1740582650726,-500.0,0.00052054,120]
[354586541,1740582650737,-500.0,0.00052054,120]
[354586542,1740582650748,-500.0,0.00052054,120]
[354586543,1740582650759,-500.0,0.00052054,120]
[354586544,1740582650770,-593.07389397,0.00052054,120]
[354586545,1740582650791,-3189.79,0.00052054,120]
[354586546,1740582650802,-3246.43,0.00052054,120]
[354586547,1740582650813,-3967.72,0.00052054,120]
[354586548,1740582650823,-2316.45,0.00052054,120]
[354586549,1740582650835,-2414.8,0.00052054,120]
[354586550,1740582650845,-2015.83,0.00052054,120]
[354586551,1740582650855,-500.0,0.00052054,120]
[354586552,1740582650867,-500.0,0.00052054,120]
[354586553,1740582650878,-3413.25,0.00052054,120]
[354586554,1740582650888,-1703.27,0.00052054,120]
[354586555,1740582650898,-2692.46,0.00052054,120]
[354586556,1740582650908,-500.0,0.00052054,120]
[354586557,1740582650918,-500.0,0.00052054,120]
[354586558,1740582650928,-500.0,0.00052054,120]
[354586559,1740582650937,-500.0,0.00052054,120]
[354586560,1740582650947,-934.81,0.00052054,120]
[354586561,1740582650957,-804.42,0.00052054,120]
[354586562,1740582650968,-500.0,0.00052054,120]
[354586563,1740582650978,-500.0,0.00052054,120]
[354586564,1740582650989,-1157.19,0.00052054,120]
[354586565,1740582650999,-500.0,0.00052054,120]
[354586566,1740582651010,-500.0,0.00052054,120]
[354586567,1740582651020,-180842.23,0.00052054,7]
[354586568,1740582651036,-2356.15,0.00052054,120]
[354586569,1740582651046,-501.55291729,0.00052054,120]
[354586570,1740582651057,-500.0,0.00052054,120]
[354586571,1740582651067,-772.61,0.00052054,120]
[354586572,1740582651078,-500.0,0.00052054,120]
[354586573,1740582651088,-500.0,0.00052054,120]
[354586574,1740582651098,-21465.31,0.00052054,120]
[354586575,1740582651108,-438.15695586,0.00052054,120]
[354586576,1740582651118,-500.0,0.00052054,120]
[354586577,1740582651128,-500.0,0.00052054,120]
[354586578,1740582651138,-500.0,0.00052054,120]
[354586579,1740582651148,-500.0,0.00052054,120]
[354586580,1740582651158,-500.0,0.00052054,120]
[354586581,1740582651168,-500.0,0.00052054,120]
[354586582,1740582651179,-1563.66,0.00052054,120]
[354586583,1740582651189,-1563.66,0.00052054,120]
[354586584,1740582651199,-500.0,0.00052054,120]
[354586585,1740582651210,-1563.66,0.00052054,120]
[354586586,1740582651220,-663.65,0.00052054,120]
[354586587,1740582651230,-3569.24,0.00052054,120]
[354586588,1740582651240,-500.0,0.00052054,120]
[354586589,1740582651250,-500.0,0.00052054,30]
[354586590,1740582651260,-1299.27,0.00052054,120]
[354586591,1740582651270,-500.0,0.00052054,120]
[354586592,1740582651285,-500.0,0.00052054,120]
[354586593,1740582651294,-500.0,0.00052054,120]
[354586594,1740582651304,-500.0,0.00052054,120]
[354586595,1740582651313,-3437.25,0.00052054,120]
[354586596,1740582651323,-500.0,0.00052054,120]
[354586597,1740582651332,-500.0,0.00052054,120]
[354586598,1740582651342,-500.0,0.00052054,120]
[354586599,1740582651351,-1053.45,0.00052054,120]
[354586600,1740582651361,-2479.38,0.00052054,120]
[354586601,1740582651370,-500.0,0.00052054,120]
[354586602,1740582651380,-500.0,0.00052054,120]
[354586603,1740582651391,-500.0,0.00052054,120]
[354586604,1740582651401,-500.0,0.00052054,120]
[354586605,1740582651410,-4329.48,0.00052054,120]
[354586606,1740582651420,-4329.48,0.00052054,120]
[354586607,1740582651430,-3549.64,0.00052054,120]
[354586608,1740582651440,-500.0,0.00052054,120]
[354586609,1740582651450,-500.0,0.00052054,120]
[354586610,1740582651461,-3646.9,0.00052054,120]
[354586611,1740582651474,-783.2,0.00052054,120]
[354586612,1740582651485,-500.0,0.00052054,120]
[354586613,1740582651495,-1026.76,0.00052054,120]
[354586614,1740582651505,-500.0,0.00052054,120]
[354586615,1740582651514,-500.0,0.00052054,120]
[354586616,1740582651528,-500.0,0.00052054,120]
[354586617,1740582651537,-500.0,0.00052054,120]
[354586618,1740582651547,-500.0,0.00052054,120]
[354586619,1740582651556,-500.0,0.00052054,120]
[354586620,1740582651566,-3465.77,0.00052054,120]
[354586621,1740582651575,-738.52,0.00052054,120]
[354586622,1740582651585,-500.0,0.00052054,120]
[354586623,1740582651595,-500.0,0.00052054,120]
[354586624,1740582651604,-585.13763633,0.00052054,120]
[354586625,1740582651614,-500.0,0.00052054,120]
[354586626,1740582651625,-500.0,0.00052054,120]
[354586627,1740582651634,-500.0,0.00052054,120]
[354586628,1740582651644,-500.0,0.00052054,120]
[354586629,1740582651653,-500.0,0.00052054,120]
[354586630,1740582651663,-650.66,0.00052054,120]
[354586631,1740582651673,-500.0,0.00052054,120]
[354586632,1740582651682,-501.99,0.00052054,120]
[354586633,1740582651692,-1900.51,0.00052054,120]
[354586634,1740582651702,-500.0,0.00052054,120]
[354586635,1740582651712,-1405.63,0.00052054,120]
[354586636,1740582651721,-500.0,0.00052054,120]
[354586637,1740582651731,-500.0,0.00052054,120]
[354586638,1740582651741,-3497.71,0.00052054,120]
[354586639,1740582651750,-500.0,0.00052054,120]
[354586640,1740582651760,-500.0,0.00052054,120]
[354586641,1740582651770,-500.0,0.00052054,120]
[354586642,1740582651782,-1635.01,0.00052054,120]
[354586643,1740582651792,-500.0,0.00052054,120]
[354586644,1740582651802,-500.0,0.00052054,120]
[354586645,1740582651812,-1436.71,0.00052054,120]
[354586646,1740582651821,-1133.84,0.00052054,120]
[354586647,1740582651831,-500.0,0.00052054,120]
[354586648,1740582651840,-500.0,0.00052054,120]
[354586649,1740582651850,-1325.23,0.00052054,120]
[354586650,1740582651859,-500.0,0.00052054,120]
[354586651,1740582651869,-500.0,0.00052054,30]
[354586652,1740582651878,-500.0,0.00052054,120]
[354586653,1740582651888,-827.44,0.00052054,120]
[354586654,1740582651897,-1014.84,0.00052054,2]
[354586655,1740582651907,-500.0,0.00052054,120]
[354586656,1740582651916,-639.41987518,0.00052054,120]
[354586657,1740582651926,-500.0,0.00052054,120]
[354586658,1740582651935,-500.0,0.00052054,120]
[354586659,1740582651945,-500.0,0.00052054,120]
[354586660,1740582651954,-500.0,0.00052054,120]
[354586662,1740582651963,-2185.08,0.00052054,120]
[354586663,1740582651973,-930.24,0.00052054,120]
[354586665,1740582651982,-500.0,0.00052054,120]
[354586667,1740582651992,-500.0,0.00052054,120]
[354586669,1740582652001,-500.0,0.00052054,120]
[354586671,1740582652011,-500.0,0.00052054,20]
[354586673,1740582652020,-500.0,0.00052054,120]
[354586675,1740582652032,-500.80551448,0.00052054,120]
[354586677,1740582652041,-869.77,0.00052054,120]
[354586678,1740582652050,-3192.36,0.00052054,120]
[354586679,1740582652059,-500.0,0.00052054,120]
[354586680,1740582652069,-500.0,0.00052054,120]
[354586681,1740582652078,-782.75,0.00052054,120]
[354586682,1740582652088,-505.16079368,0.00052054,120]
[354586683,1740582652097,-500.0,0.00052054,120]
[354586684,1740582652106,-500.0,0.00052054,120]
[354586685,1740582652115,-933.61,0.00052054,120]
[354586686,1740582652125,-500.0,0.00052054,120]
[354586687,1740582652134,-1017.94,0.00052054,120]
[354586688,1740582652143,-1576.67,0.00052054,120]
[354586689,1740582652152,-1135.21,0.00052054,120]
[354586690,1740582652163,-1734.07,0.00052054,120]
[354586692,1740582652330,-500.0,0.00052054,120]
[354586694,1740582652340,-500.0,0.00052054,120]
[354586696,1740582652351,-500.0,0.00052054,120]
[354586698,1740582652361,-500.0,0.00052054,120]
[354586700,1740582652371,-500.0,0.00052054,120]
[354586702,1740582652382,-500.0,0.00052054,120]
[354586704,1740582652401,-583.82884349,0.00052054,120]
[354586706,1740582652416,-47502.66,0.00052054,6]
[354586708,1740582652427,-157.05018546,0.00052054,120]
[354586710,1740582652439,-500.0,0.00052054,120]
[354586712,1740582652448,-1010.63,0.00052054,120]
[354586714,1740582652459,-501.1759548,0.00052054,120]
[354586717,1740582652470,-500.0,0.00052054,120]
[354586718,1740582652479,-500.0,0.00052054,120]
[354586720,1740582652490,-500.0,0.00052054,120]
[354586722,1740582652499,-744.75,0.00052054,120]
[354586724,1740582652508,-500.0,0.00052054,120]
[354586726,1740582652518,-895.15,0.00052054,120]
[354586728,1740582652530,-3077.9,0.00052054,120]
[354586730,1740582652539,-2932.31,0.00052054,120]
[354586732,1740582652548,-500.0,0.00052054,120]
[354586734,1740582652558,-660.22,0.00052054,120]
[354586736,1740582652567,-1443.43,0.00052054,120]
[354586738,1740582652576,-500.0,0.00052054,120]
[354586740,1740582652585,-2022.63,0.00052054,120]
[354586742,1740582652595,-500.0,0.00052054,120]
[354586744,1740582652605,-500.0,0.00052054,120]
[354586746,1740582652615,-500.30074184,0.00052054,120]
[354586748,1740582652625,-500.0,0.00052054,120]
[354586750,1740582652634,-500.0,0.00052054,120]
[354586752,1740582652644,-1137.47,0.00052054,120]
[354586754,1740582652655,-3813.12,0.00052054,120]
[354586756,1740582652664,-500.0,0.00052054,120]
[354586757,1740582652673,-500.0,0.00052054,120]
[354586759,1740582652683,-503.48674989,0.00052054,120]
[354586761,1740582652692,-1397.54,0.00052054,120]
[354586763,1740582652702,-500.0,0.00052054,120]
[354586765,1740582652712,-500.0,0.00052054,120]
[354586766,1740582652722,-500.0,0.00052054,120]
[354586768,1740582652731,-15954.87534808,0.00052054,3]
[354586769,1740582652741,-598.48,0.00052054,120]
[354586771,1740582652751,-500.0,0.00052054,120]
[354586773,1740582652761,-500.0,0.00052054,120]
[354586775,1740582652770,-1928.03,0.00052054,120]
[354586776,1740582652783,-500.0,0.00052054,120]
[354586777,1740582652793,-731.46,0.00052054,120]
[354586779,1740582652802,-653.68,0.00052054,120]
[354586781,1740582652811,-500.0,0.00052054,120]
[354586783,1740582652820,-15010.76,0.00052054,120]
[354586784,1740582652830,-2262.11,0.00052054,120]
[354586785,1740582652839,-500.0,0.00052054,120]
[354586786,1740582652849,-3000.0,0.00052054,120]
[354586787,1740582652858,-500.0,0.00052054,120]
[354586788,1740582652867,-500.0,0.00052054,120]
[354586789,1740582652877,-667.46,0.00052054,120]
[354586790,1740582652886,-1823.46,0.00052054,120]
[354586791,1740582652896,-685.54,0.00052054,120]
[354586792,1740582652906,-500.0,0.00052054,10]
[354586793,1740582652915,-500.0,0.00052054,120]
[354586794,1740582652925,-3114.67,0.00052054,120]
[354586795,1740582652934,-2387.3,0.00052054,120]
[354586796,1740582652944,-649.39492309,0.00052054,120]
[354586797,1740582652953,-500.0,0.00052054,120]
[354586798,1740582652963,-500.0,0.00052054,120]
[354586799,1740582652973,-500.0,0.00052054,120]
[354586800,1740582652983,-500.0,0.00052054,120]
[354586801,1740582652992,-500.0,0.00052054,120]
[354586802,1740582653002,-503.61612058,0.00052054,120]
[354586803,1740582653012,-1462.65,0.00052054,120]
[354586804,1740582653024,-500.0,0.00052054,120]
[354586805,1740582653034,-500.0,0.00052054,120]
[354586806,1740582653044,-500.0,0.00052054,120]
[354586807,1740582653054,-1209.39,0.00052054,120]
[354586808,1740582653064,-500.0,0.00052054,120]
[354586809,1740582653073,-500.0,0.00052054,120]
[354586810,1740582653083,-500.0,0.00052054,120]
[354586811,1740582653093,-500.0,0.00052054,120]
[354586812,1740582653106,-859.14,0.00052054,120]
[354586813,1740582653115,-500.0,0.00052054,120]
[354586814,1740582653125,-250.0,0.00052054,120]
[354586815,1740582653135,-630.27,0.00052054,120]
[354586816,1740582653144,-500.72895273,0.00052054,2]
[354586817,1740582653153,-5410.14,0.00052054,120]
[354586818,1740582653163,-500.0,0.00052054,120]
[354586819,1740582653172,-500.0,0.00052054,120]
[354586820,1740582653182,-829.85,0.00052054,120]
[354586821,1740582653191,-500.0,0.00052054,120]
[354586822,1740582653200,-1000.0,0.00052054,120]
[354586823,1740582653210,-500.0,0.00052054,120]
[354586824,1740582653219,-595.05,0.00052054,120]
[354586825,1740582653229,-500.0,0.00052073,7]
[354586826,1740582653238,-500.0,0.00052073,10]
[354586827,1740582653248,-500.0,0.00052073,10]
[354586828,1740582653257,-500.0,0.00052073,10]
[354586830,1740582653267,-500.0,0.00052073,10]
[354586832,1740582653280,-2792.14,0.000521,30]
[354586834,1740582653290,-1995.84,0.000521,30]
[354586836,1740582653300,-230.87029926,0.00052228,2]
[354586837,1740582653311,-500.0,0.00052423,10]
[354586838,1740582653320,-500.0,0.00052423,10]
[354586839,1740582653330,-500.0,0.00052423,10]
[354586840,1740582653339,-500.0,0.00052423,10]
[354586842,1740582653348,-500.0,0.00052423,10]
[354586844,1740582653358,-500.0,0.00052423,10]
[354586845,1740582653368,-500.0,0.00052423,10]
[354586847,1740582653377,-500.0,0.00052423,10]
[354586849,1740582653388,-502.68886795,0.00052423,10]
[354586851,1740582653397,-500.0,0.00052423,10]
[354586853,1740582653406,-500.0,0.00052423,10]
[354586855,1740582653420,-230.87029926,0.00052502,2]
[354586856,1740582653429,-151.0,0.00052521,120]
[354586857,1740582653440,-500.0,0.00052602,120]
[354586858,1740582653450,-500.0,0.00052602,120]
[354586859,1740582653460,-500.0,0.00052602,120]
[354586860,1740582653469,-500.0,0.00052602,120]
[354586861,1740582653479,-500.0,0.00052602,120]
[354586862,1740582653488,-500.0,0.00052602,120]
[354586863,1740582653498,-500.0,0.00052602,120]
[354586864,1740582653506,-505.60370436,0.00052602,120]
[354586865,1740582653515,-282.05821622,0.00052602,120]
[354586866,1740582653527,-1000.0,0.00052602,120]
[354586867,1740582653536,-500.0,0.00052602,120]
[354586868,1740582653546,-1000.0,0.00052602,120]
[354586869,1740582653555,-500.0,0.00052602,120]
[354586870,1740582653564,-500.0,0.00052602,120]
[354586871,1740582653574,-549.98,0.00052602,120]
[354586872,1740582653583,-500.0,0.00052602,120]
[354586873,1740582653592,-505.46744743,0.00052602,120]
[354586874,1740582653602,-500.0,0.00052602,120]
[354586875,1740582653612,-500.0,0.00052602,120]
[354586876,1740582653621,-2030.21,0.00052602,120]
[354586877,1740582653631,-640.38,0.00052602,120]
[354586878,1740582653640,-500.0,0.00052602,120]
[354586879,1740582653649,-738.42,0.00052602,120]
[354586880,1740582653658,-667.03,0.00052602,120]
[354586881,1740582653668,-500.0,0.00052602,120]
[354586882,1740582653678,-1685.13,0.00052602,120]
[354586883,1740582653688,-500.4534857,0.00052602,120]
[354586884,1740582653698,-500.0,0.00052602,120]
[354586885,1740582653708,-500.0,0.00052602,120]
[354586886,1740582653717,-500.0,0.00052602,120]
[354586887,1740582653727,-582.16823479,0.00052602,120]
[354586888,1740582653737,-500.0,0.00052602,120]
[354586889,1740582653746,-500.0,0.00052602,120]
[354586890,1740582653756,-918.49,0.00052602,120]
[354586891,1740582653765,-500.0,0.00052602,120]
[354586892,1740582653777,-500.0,0.00052602,120]
[354586893,1740582653786,-500.0,0.00052602,120]
[354586894,1740582653796,-505.8874119,0.00052602,120]
[354586895,1740582653806,-500.0,0.00052602,120]
[354586896,1740582653816,-500.0,0.00052602,120]
[354586897,1740582653825,-610.34,0.00052602,120]
[354586898,1740582653835,-297.16287668,0.00052602,120]
[354586899,1740582653845,-3585.65,0.00052602,120]
[354586900,1740582653856,-631.04,0.00052602,120]
[354586901,1740582653865,-545.26,0.00052602,120]
[354586902,1740582653875,-500.0,0.00052602,120]
[354586903,1740582653885,-1444.88,0.00052602,120]
[354586904,1740582653894,-500.0,0.00052602,120]
[354586905,1740582653903,-500.0,0.00052602,120]
[354586906,1740582653913,-500.0,0.00052602,120]
[354586907,1740582653922,-2086.2,0.00052602,120]
[354586908,1740582653931,-500.0,0.00052602,120]
[354586909,1740582653941,-500.0,0.00052602,120]
[354586910,1740582653951,-500.0,0.00052602,120]
[354586911,1740582653961,-500.0,0.00052602,120]
[354586912,1740582653970,-500.0,0.00052602,120]
[354586913,1740582653979,-500.0,0.00052602,120]
[354586914,1740582653988,-500.0,0.00052602,120]
[354586915,1740582653999,-500.0,0.00052602,120]
[354586916,1740582654008,-524.68314094,0.00052602,120]
[354586917,1740582654018,-1126.82,0.00052602,120]
[354586918,1740582654033,-505.7337078,0.00052602,120]
[354586919,1740582654043,-535.69,0.00052602,120]
[354586920,1740582654052,-500.0,0.00052602,120]
[354586921,1740582654062,-500.0,0.00052602,120]
[354586922,1740582654071,-500.0,0.00052602,120]
[354586923,1740582654081,-675.33,0.00052602,120]
[354586924,1740582654090,-227.0469136,0.00052602,120]
[354586925,1740582654099,-500.0,0.00052602,120]
[354586926,1740582654109,-2245.8,0.00052602,120]
[354586927,1740582654118,-500.0,0.00052602,120]
[354586928,1740582654127,-500.0,0.00052602,120]
[354586929,1740582654137,-500.0,0.00052602,120]
[354586930,1740582654146,-500.0,0.00052602,120]
[354586931,1740582654156,-1293.49,0.00052602,120]
[354586932,1740582654166,-500.0,0.00052602,120]
[354586933,1740582654176,-585.13,0.00052602,120]
[354586934,1740582654185,-500.0,0.00052602,120]
[354586935,1740582654195,-500.0,0.00052602,120]
[354586936,1740582654206,-2221.83,0.00052602,120]
[354586937,1740582654215,-500.0,0.00052602,120]
[354586938,1740582654225,-500.0,0.00052602,120]
[354586939,1740582654234,-1116.98,0.00052602,120]
[354586940,1740582654244,-500.0,0.00052602,120]
[354586941,1740582654253,-300.0,0.00052602,120]
[354586942,1740582654263,-500.0,0.00052602,120]
[354586943,1740582654275,-500.0,0.00052602,120]
[354586944,1740582654286,-623.42,0.00052602,120]
[354586945,1740582654295,-500.0,0.00052602,120]
[354586946,1740582654305,-500.0,0.00052602,120]